fUST/lending_fUST_20250718
["ID","MTS","AMOUNT","RATE_DAILY","PERIOD"]
[372916246,1752804651810,-460.0,0.00017534,2]
[372916247,1752804651819,-460.0,0.00017534,2]
[372916248,1752804651829,-460.0,0.00017534,2]
[372916249,1752804651839,-1218.2,0.00017534,2]
[372916250,1752804651849,-460.0,0.00017534,2]
[372916252,1752804651858,-151.0,0.00017534,2]
[372916253,1752804651869,-2162.0,0.00017534,2]
[372916254,1752804651878,-460.0,0.00017534,2]
[372916255,1752804651888,-460.0,0.00017534,2]
[372916256,1752804651898,-648.82,0.00017534,2]
[372916257,1752804651907,-473.4,0.00017534,2]
[372916258,1752804651917,-1683.07,0.00017534,2]
[372916259,1752804651927,-460.0,0.00017534,2]
[372916260,1752804651936,-469.82,0.00017534,2]
[372916261,1752804651946,-460.0,0.00017534,2]
[372916262,1752804651956,-460.0,0.00017534,2]
[372916263,1752804651965,-460.0,0.00017534,2]
[372916264,1752804651978,-460.0,0.00017534,2]
[372916265,1752804651987,-460.0,0.00017534,2]
[372916266,1752804651997,-460.0,0.00017534,2]
[372916267,1752804652006,-151.0,0.00017534,2]
[372916268,1752804652017,-460.0,0.00017534,2]
[372916269,1752804652027,-460.0,0.00017534,2]
[372916270,1752804652037,-151.0,0.00017534,2]
[372916271,1752804652047,-460.0,0.00017534,2]
[372916272,1752804652057,-151.0,0.00017534,2]
[372916273,1752804652067,-460.0,0.00017534,2]
[372916274,1752804652076,-1400.22,0.00017534,2]
[372916275,1752804652086,-460.0,0.00017534,2]
[372916276,1752804652096,-460.0,0.00017534,2]
[372916277,1752804652105,-460.0,0.00017534,2]
[372916278,1752804652115,-460.0,0.00017534,2]
[372916279,1752804652125,-460.0,0.00017534,2]
[372916280,1752804652135,-460.0,0.00017534,2]
[372916281,1752804652145,-460.0,0.00017534,2]
[372916282,1752804652154,-460.0,0.00017534,2]
[372916283,1752804652165,-1109.21,0.00017534,2]
[372916284,1752804652174,-1732.085838,0.00017534,2]
[372916285,1752804652185,-460.0,0.00017534,2]
[372916286,1752804652195,-1732.085838,0.00017534,2]
[372916287,1752804652205,-151.0,0.00017534,2]
[372916288,1752804652215,-151.0,0.00017534,2]
[372916289,1752804652225,-460.0,0.00017534,2]
[372916290,1752804652234,-955.06,0.00017534,2]
[372916291,1752804652244,-151.0,0.00017534,2]
[372916292,1752804652254,-2135.19,0.00017534,2]
[372916293,1752804652264,-810.74,0.00017534,2]
[372916294,1752804652274,-460.0,0.00017534,2]
[372916295,1752804652284,-460.0,0.00017534,2]
[372916296,1752804652294,-460.0,0.00017534,2]
[372916297,1752804652304,-460.0,0.00017534,2]
[372916298,1752804652314,-460.0,0.00017534,2]
[372916299,1752804652324,-460.0,0.00017534,2]
[372916301,1752804652334,-487.2,0.00017534,2]
[372916302,1752804652344,-460.0,0.00017534,2]
[372916303,1752804652353,-3372.73,0.00017534,2]
[372916304,1752804652363,-153.709726,0.00017534,2]
[372916305,1752804652374,-460.0,0.00017534,2]
[372916306,1752804652384,-460.0,0.00017534,2]
[372916307,1752804652394,-2066.01,0.00017534,2]
[372916308,1752804652404,-1500.0,0.00017568,2]
[372916309,1752804652413,-160.0,0.00017573,2]
[372916310,1752804652423,-376.57157048,0.00017652,2]
[372916311,1752804652433,-1000.0,0.000178,5]
[372916312,1752804652442,-474.74055279,0.00017808,2]
[372916313,1752804652452,-460.0,0.00017808,2]
[372916314,1752804652462,-361.0945519,0.00017808,2]
[372916315,1752804652472,-460.0,0.00017808,2]
[372916316,1752804652482,-460.0,0.00017808,2]
[372916317,1752804652492,-155.69,0.00017808,2]
[372916318,1752804652502,-460.0,0.00017808,2]
[372916319,1752804652512,-460.0,0.00017808,2]
[372916320,1752804652522,-460.0,0.00017808,2]
[372916321,1752804652532,-460.0,0.00017808,2]
[372916322,1752804652542,-569.80108252,0.00017808,2]
[372916323,1752804652552,-460.0,0.00017808,2]
[372916324,1752804652561,-460.0,0.00017808,2]
[372916325,1752804652571,-482.95,0.00017808,2]
[372916326,1752804652581,-460.0,0.00017808,2]
[372916327,1752804652590,-460.0,0.00017808,2]
[372916328,1752804652601,-152.830834,0.00017808,2]
[372916329,1752804652611,-460.0,0.00017808,2]
[372916330,1752804652623,-151.0,0.00017808,2]
[372916331,1752804652632,-224.677871,0.00017808,2]
[372916332,1752804652642,-460.0,0.00017808,2]
[372916333,1752804652651,-1028.9,0.00017808,2]
[372916334,1752804652660,-608.84089523,0.00017808,2]
[372916335,1752804652670,-460.0,0.00017808,2]
[372916336,1752804652679,-460.0,0.00017808,2]
[372916337,1752804652689,-151.0,0.00017808,2]
[372916338,1752804652699,-460.0,0.00017808,2]
[372916339,1752804652710,-151.0,0.00017808,2]
[372916340,1752804652719,-460.0,0.00017808,2]
[372916341,1752804652729,-156.579367,0.00017808,2]
[372916342,1752804652738,-156.579367,0.00017808,2]
[372916343,1752804652748,-273.932556,0.00017808,2]
[372916344,1752804652757,-460.0,0.00017808,2]
[372916345,1752804652767,-460.0,0.00017808,2]
[372916346,1752804652777,-460.0,0.00017808,2]
[372916347,1752804652787,-914.13,0.00017808,2]
[372916348,1752804652796,-460.0,0.00017808,2]
[372916349,1752804652882,-276.462379,0.00017808,2]
[372916350,1752804652901,-944.07,0.00017808,2]
[372916351,1752804652910,-276.462379,0.00017808,2]
[372916352,1752804652920,-460.0,0.00017808,2]
[372916353,1752804652931,-460.0,0.00017808,2]
[372916354,1752804652940,-460.0,0.00017808,2]
[372916355,1752804652950,-473.65315871,0.00017808,2]
[372916356,1752804652959,-460.0,0.00017808,2]
[372916357,1752804652970,-460.0,0.00017808,2]
[372916358,1752804652980,-1218.2,0.00017808,2]
[372916359,1752804652990,-460.0,0.00017808,2]
[372916360,1752804653000,-2162.0,0.00017808,2]
[372916361,1752804653009,-460.0,0.00017808,2]
[372916362,1752804653019,-460.0,0.00017808,2]
[372916363,1752804653028,-648.82,0.00017808,2]
[372916364,1752804653035,-473.4,0.00017808,2]
[372916365,1752804653044,-1683.07,0.00017808,2]
[372916366,1752804653051,-460.0,0.00017808,2]
[372916367,1752804653058,-460.0,0.00017808,2]
[372916368,1752804653066,-469.82,0.00017808,2]
[372916369,1752804653073,-460.0,0.00017808,2]
[372916370,1752804653081,-283.69,0.00017808,2]
[372916371,1752804653090,-460.0,0.00017808,2]
[372916372,1752804653099,-460.0,0.00017808,2]
[372916373,1752804653109,-460.0,0.00017808,2]
[372916374,1752804653120,-460.0,0.00017808,2]
[372916375,1752804653129,-460.0,0.00017808,2]
[372916376,1752804653139,-151.0,0.00017808,2]
[372916377,1752804653148,-460.0,0.00017808,2]
[372916379,1752804653158,-1400.22,0.00017808,2]
[372916380,1752804653167,-460.0,0.00017808,2]
[372916381,1752804653177,-460.0,0.00017808,2]
[372916382,1752804653186,-460.0,0.00017808,2]
[372916383,1752804653196,-460.0,0.00017808,2]
[372916384,1752804653205,-460.0,0.00017808,2]
[372916385,1752804653215,-460.0,0.00017808,2]
[372916386,1752804653224,-460.0,0.00017808,2]
[372916387,1752804653234,-1109.21,0.00017808,2]
[372916388,1752804653244,-460.0,0.00017808,2]
[372916389,1752804653253,-955.06,0.00017808,2]
[372916390,1752804653262,-460.0,0.00017808,2]
[372916391,1752804653272,-2135.19,0.00017808,2]
[372916392,1752804653282,-810.74,0.00017808,2]
[372916393,1752804653292,-460.0,0.00017808,2]
[372916394,1752804653302,-460.0,0.00017808,2]
[372916395,1752804653311,-460.0,0.00017808,2]
[372916396,1752804653320,-460.0,0.00017808,2]
[372916397,1752804653330,-460.0,0.00017808,2]
[372916398,1752804653340,-460.0,0.00017808,2]
[372916399,1752804653349,-487.2,0.00017808,2]
[372916400,1752804653359,-460.0,0.00017808,2]
[372916401,1752804653369,-3372.73,0.00017808,2]
[372916402,1752804653379,-460.0,0.00017808,2]
[372916403,1752804653388,-460.0,0.00017808,2]
[372916404,1752804653398,-2066.01,0.00017808,2]
[372916405,1752804653408,-420.0,0.00017856,2]
[372916406,1752804653422,-4692.00815585,0.0001794,2]
[372916407,1752804653432,-1200.0,0.00017945,2]
[372916408,1752804653442,-501.46377135,0.00017952,2]
[372916409,1752804653451,-501.09296893,0.00017952,2]
[372916410,1752804653461,-500.85686421,0.00017952,2]
[372916411,1752804653471,-502.71379163,0.00017952,2]
[372916412,1752804653480,-501.33414174,0.00017952,2]
[372916413,1752804653490,-644.0334221,0.00017952,2]
[372916414,1752804653500,-503.93358597,0.00017952,2]
[372916415,1752804653510,-500.0,0.00017952,2]
[372916416,1752804653519,-176.41137148,0.00017952,2]
[372916417,1752804653529,-385.05416638,0.00017952,2]
[372916418,1752804653539,-501.81749173,0.00017952,2]
[372916419,1752804653548,-500.0,0.00017952,2]
[372916420,1752804653558,-500.92920359,0.00017952,2]
[372916421,1752804653567,-500.0,0.00017952,2]
[372916422,1752804653576,-501.05616911,0.00017965,2]
[372916423,1752804653585,-151.0,0.00018026,2]
[372916424,1752804653595,-151.0,0.00018026,2]
[372916425,1752804653605,-151.88071785,0.00018026,2]
[372916426,1752804653615,-207.4,0.00018026,2]
[372916427,1752804653626,-151.0,0.00018026,2]
[372916428,1752804653636,-151.0,0.00018026,2]
[372916429,1752804653645,-151.0,0.00018026,2]
[372916430,1752804653655,-151.0,0.00018026,2]
[372916431,1752804653665,-151.0,0.00018026,2]
[372916432,1752804653675,-152.16289706,0.00018026,2]
[372916433,1752804653684,-151.0,0.00018026,2]
[372916434,1752804653694,-151.0,0.00018026,2]
[372916435,1752804653704,-254.51802904,0.00018026,2]
[372916436,1752804653714,-151.0,0.00018026,2]
[372916437,1752804653723,-151.0,0.00018026,2]
[372916438,1752804653733,-151.0,0.00018026,2]
[372916439,1752804653743,-151.0,0.00018026,2]
[372916440,1752804653752,-500.0,0.00018026,2]
[372916441,1752804653761,-500.0,0.00018026,2]
[372916442,1752804653771,-151.0,0.00018026,2]
[372916443,1752804653780,-151.0,0.00018026,2]
[372916444,1752804653790,-523.53672427,0.00018026,2]
[372916445,1752804653799,-151.0,0.00018026,2]
[372916446,1752804653808,-151.0,0.00018026,2]
[372916447,1752804653818,-151.0,0.00018026,2]
[372916448,1752804653827,-151.0,0.00018026,2]
[372916449,1752804653837,-151.0,0.00018026,2]
[372916450,1752804653846,-151.0,0.00018026,2]
[372916451,1752804653856,-151.0,0.00018026,2]
[372916452,1752804653865,-25000.0,0.00018026,2]
[372916453,1752804653876,-12956.77546059,0.00018026,2]
[372916454,1752804653886,-151.0,0.00018026,2]
[372916455,1752804653896,-151.0,0.00018026,2]
[372916456,1752804653905,-151.0,0.00018026,2]
[372916457,1752804653914,-151.0,0.00018026,2]
[372916458,1752804653923,-151.0,0.00018026,2]
[372916459,1752804653933,-151.0,0.00018026,2]
[372916460,1752804653942,-151.0,0.00018026,2]
[372916461,1752804653951,-151.0,0.00018026,2]
[372916462,1752804653962,-151.0,0.00018026,2]
[372916463,1752804653974,-151.643484,0.00018026,2]
[372916465,1752804653983,-151.0,0.00018026,2]
[372916466,1752804653993,-151.0,0.00018026,2]
[372916467,1752804654003,-335.74297,0.00018026,2]
[372916468,1752804654013,-335.74297,0.00018026,2]
[372916469,1752804654024,-151.0,0.00018026,2]
[372916470,1752804654035,-151.0,0.00018026,2]
[372916471,1752804654045,-152.248119,0.00018026,2]
[372916472,1752804654054,-151.0,0.00018026,2]
[372916473,1752804654064,-151.0,0.00018026,2]
[372916474,1752804654074,-151.0,0.00018026,2]
[372916475,1752804654085,-214.4881157,0.00018066,2]
[372916476,1752804654094,-160.0,0.00018066,2]
[372916477,1752804654104,-215.63268315,0.00018066,2]
[372916478,1752804654113,-839.30593155,0.00018066,2]
[372916479,1752804654124,-230.89969799,0.00018066,2]
[372916480,1752804654133,-12610.43989422,0.00018066,2]
[372916481,1752804654143,-160.0,0.00018066,2]
[372916483,1752804654152,-525.75194068,0.00018066,2]
[372916484,1752804654162,-476.25663856,0.00018066,2]
[372916485,1752804654171,-160.0,0.00018066,2]
[372916486,1752804654180,-160.0,0.00018066,2]
[372916487,1752804654190,-160.0,0.00018066,2]
[372916488,1752804654200,-160.0,0.00018066,2]
[372916489,1752804654210,-472.88845816,0.00018082,2]
[372916490,1752804654219,-151.983661,0.00018082,2]
[372916491,1752804654229,-151.0,0.00018082,2]
[372916492,1752804654238,-165.35828905,0.00018082,2]
[372916493,1752804654248,-151.0,0.00018082,2]
[372916494,1752804654257,-151.0,0.00018082,2]
[372916495,1752804654267,-460.0,0.00018082,2]
[372916496,1752804654276,-151.0,0.00018082,2]
[372916497,1752804654286,-508.8848807,0.00018082,2]
[372916498,1752804654295,-460.0,0.00018082,2]
[372916499,1752804654312,-460.0,0.00018082,2]
[372916500,1752804654325,-460.0,0.00018082,2]
[372916501,1752804654334,-495.50880468,0.00018082,2]
[372916502,1752804654344,-482.95,0.00018082,2]
[372916503,1752804654354,-460.0,0.00018082,2]
[372916504,1752804654364,-460.0,0.00018082,2]
[372916505,1752804654375,-460.0,0.00018082,2]
[372916506,1752804654384,-460.0,0.00018082,2]
[372916507,1752804654394,-1028.9,0.00018082,2]
[372916508,1752804654403,-460.0,0.00018082,2]
[372916509,1752804654413,-460.0,0.00018082,2]
[372916510,1752804654423,-151.0,0.00018082,2]
[372916511,1752804654432,-460.0,0.00018082,2]
[372916512,1752804654442,-460.0,0.00018082,2]
[372916513,1752804654451,-460.0,0.00018082,2]
[372916514,1752804654461,-914.13,0.00018082,2]
[372916515,1752804654471,-151.0,0.00018082,2]
[372916516,1752804654480,-460.0,0.00018082,2]
[372916517,1752804654490,-944.07,0.00018082,2]
[372916518,1752804654499,-460.0,0.00018082,2]
[372916519,1752804654510,-460.0,0.00018082,2]
[372916520,1752804654519,-460.0,0.00018082,2]
[372916521,1752804654529,-460.0,0.00018082,2]
[372916522,1752804654538,-460.0,0.00018082,2]
[372916523,1752804654548,-1218.2,0.00018082,2]
[372916524,1752804654675,-460.0,0.00018082,2]
[372916525,1752804654685,-2162.0,0.00018082,2]
[372916526,1752804654694,-460.0,0.00018082,2]
[372916527,1752804654703,-460.0,0.00018082,2]
[372916528,1752804654713,-648.82,0.00018082,2]
[372916529,1752804654723,-473.4,0.00018082,2]
[372916530,1752804654732,-1683.07,0.00018082,2]
[372916531,1752804654741,-460.0,0.00018082,2]
[372916532,1752804654750,-460.0,0.00018082,2]
[372916533,1752804654761,-469.82,0.00018082,2]
[372916534,1752804654770,-460.0,0.00018082,2]
[372916535,1752804654779,-460.0,0.00018082,2]
[372916536,1752804654789,-460.0,0.00018082,2]
[372916537,1752804654799,-151.0,0.00018082,2]
[372916538,1752804654808,-460.0,0.00018082,2]
[372916539,1752804654818,-460.0,0.00018082,2]
[372916540,1752804654828,-151.0,0.00018082,2]
[372916541,1752804654837,-470.99606087,0.00018082,2]
[372916542,1752804654847,-151.932486,0.00018082,2]
[372916543,1752804654857,-460.0,0.00018082,2]
[372916544,1752804654867,-1400.22,0.00018082,2]
[372916545,1752804654877,-460.0,0.00018082,2]
[372916546,1752804654887,-590.45146136,0.00018082,2]
[372916547,1752804654897,-460.0,0.00018082,2]
[372916548,1752804654906,-460.0,0.00018082,2]
[372916549,1752804654916,-460.0,0.00018082,2]
[372916550,1752804654926,-460.0,0.00018082,2]
[372916551,1752804654936,-1109.21,0.00018082,2]
[372916552,1752804654945,-1732.085838,0.00018082,2]
[372916553,1752804654955,-460.0,0.00018082,2]
[372916554,1752804654965,-1732.085838,0.00018082,2]
[372916556,1752804654977,-955.06,0.00018082,2]
[372916557,1752804654986,-460.0,0.00018082,2]
[372916558,1752804654995,-2135.19,0.00018082,2]
[372916559,1752804655007,-810.74,0.00018082,2]
[372916560,1752804655018,-460.0,0.00018082,2]
[372916561,1752804655027,-460.0,0.00018082,2]
[372916562,1752804655038,-460.0,0.00018082,2]
[372916563,1752804655048,-460.0,0.00018082,2]
[372916564,1752804655058,-460.0,0.00018082,2]
[372916565,1752804655067,-460.0,0.00018082,2]
[372916566,1752804655077,-487.2,0.00018082,2]
[372916567,1752804655087,-460.0,0.00018082,2]
[372916568,1752804655096,-3372.73,0.00018082,2]
[372916569,1752804655106,-460.0,0.00018082,2]
[372916570,1752804655115,-194.48721038,0.00018082,2]
[372916571,1752804655125,-2066.01,0.00018082,2]
[372916572,1752804655135,-1500.0,0.00018116,2]
[372916573,1752804655145,-260.0,0.00018121,2]
[372916574,1752804655154,-329.5126326,0.00018184,2]
[372916575,1752804655165,-460.0,0.00018356,2]
[372916576,1752804655174,-194.358805,0.00018356,2]
[372916577,1752804655184,-194.358805,0.00018356,2]
[372916578,1752804655194,-151.0,0.00018356,2]
[372916579,1752804655203,-175.203962,0.00018356,2]
[372916580,1752804655212,-151.0,0.00018356,2]
[372916581,1752804655222,-151.0,0.00018356,2]
[372916582,1752804655231,-460.0,0.00018356,2]
[372916583,1752804655241,-152.03336,0.00018356,2]
[372916584,1752804655250,-460.0,0.00018356,2]
[372916586,1752804655260,-482.95,0.00018356,2]
[372916587,1752804655269,-460.0,0.00018356,2]
[372916588,1752804655279,-476.5538885,0.00018356,2]
[372916589,1752804655289,-151.0,0.00018356,2]
[372916590,1752804655299,-289.28585594,0.00018356,2]
[372916591,1752804655308,-1028.9,0.00018356,2]
[372916592,1752804655318,-462.62533365,0.00018356,2]
[372916593,1752804655328,-152.621817,0.00018356,2]
[372916594,1752804655337,-460.0,0.00018356,2]
[372916595,1752804655351,-151.0,0.00018356,2]
[372916596,1752804655373,-156.579367,0.00018356,2]
[372916598,1752804655384,-156.579367,0.00018356,2]
[372916599,1752804655393,-460.0,0.00018356,2]
[372916600,1752804655403,-460.0,0.00018356,2]
[372916601,1752804655413,-914.13,0.00018356,2]
[372916602,1752804655423,-460.0,0.00018356,2]
[372916603,1752804655432,-276.462379,0.00018356,2]
[372916604,1752804655442,-944.07,0.00018356,2]
[372916605,1752804655452,-276.462379,0.00018356,2]
[372916606,1752804655469,-460.0,0.00018356,2]
[372916607,1752804655487,-460.0,0.00018356,2]
[372916608,1752804655500,-460.0,0.00018356,2]
[372916610,1752804655515,-460.0,0.00018356,2]
[372916611,1752804655529,-460.0,0.00018356,2]
[372916612,1752804655546,-1218.2,0.00018356,2]
[372916614,1752804655562,-460.0,0.00018356,2]
[372916615,1752804655577,-2162.0,0.00018356,2]
[372916616,1752804655591,-460.0,0.00018356,2]
[372916617,1752804655608,-460.0,0.00018356,2]
[372916618,1752804655624,-648.82,0.00018356,2]
[372916619,1752804655639,-473.4,0.00018356,2]
[372916620,1752804655653,-1683.07,0.00018356,2]
[372916621,1752804655664,-460.0,0.00018356,2]
[372916623,1752804655679,-460.0,0.00018356,2]
[372916624,1752804655693,-469.82,0.00018356,2]
[372916625,1752804655707,-460.0,0.00018356,2]
[372916626,1752804655722,-460.0,0.00018356,2]
[372916627,1752804655739,-460.0,0.00018356,2]
[372916628,1752804655752,-460.0,0.00018356,2]
[372916629,1752804655762,-460.0,0.00018356,2]
[372916630,1752804655775,-151.0,0.00018356,2]
[372916631,1752804655792,-460.0,0.00018356,2]
[372916632,1752804655804,-1400.22,0.00018356,2]
[372916633,1752804655816,-460.0,0.00018356,2]
[372916634,1752804655830,-460.0,0.00018356,2]
[372916635,1752804655844,-460.0,0.00018356,2]
[372916636,1752804655855,-460.0,0.00018356,2]
[372916637,1752804655868,-460.0,0.00018356,2]
[372916638,1752804655882,-1109.21,0.00018356,2]
[372916639,1752804655895,-460.0,0.00018356,2]
[372916640,1752804655908,-955.06,0.00018356,2]
[372916641,1752804655921,-460.0,0.00018356,2]
[372916642,1752804655933,-2135.19,0.00018356,2]
[372916643,1752804655946,-810.74,0.00018356,2]
[372916644,1752804655959,-460.0,0.00018356,2]
[372916645,1752804655975,-460.0,0.00018356,2]
[372916646,1752804655989,-460.0,0.00018356,2]
[372916647,1752804656001,-460.0,0.00018356,2]
[372916648,1752804656015,-460.0,0.00018356,2]
[372916649,1752804656027,-487.2,0.00018356,2]
[372916650,1752804656040,-460.0,0.00018356,2]
[372916651,1752804656054,-3372.73,0.00018356,2]
[372916652,1752804656068,-460.0,0.00018356,2]
[372916653,1752804656081,-152.20610943,0.00018387,2]
[372916654,1752804656095,-548.0,0.00018387,2]
[372916655,1752804656106,-151.0,0.00018387,2]
[372916656,1752804656119,-151.0,0.00018387,2]
[372916657,1752804656132,-500.0,0.00018387,2]
[372916658,1752804656146,-151.0,0.00018413,2]
[372916659,1752804656159,-218.868935,0.00018413,2]
[372916660,1752804656172,-218.868935,0.00018413,2]
[372916661,1752804656184,-4692.00815585,0.00018474,2]
[372916662,1752804656197,-505.90455104,0.000185,2]
[372916663,1752804656209,-1000.0,0.000185,2]
[372916664,1752804656222,-1003.42127867,0.000185,2]
[372916665,1752804656234,-25000.0,0.00018574,2]
[372916666,1752804656246,-151.0,0.00018574,2]
[372916667,1752804656259,-151.0,0.00018574,2]
[372916668,1752804656272,-335.74297,0.00018574,2]
[372916669,1752804656284,-335.74297,0.00018574,2]
[372916670,1752804656296,-151.0,0.00018574,2]
[372916671,1752804656308,-151.0,0.00018574,2]
[372916672,1752804656322,-151.0,0.00018574,2]
[372916673,1752804656334,-151.0,0.00018574,2]
[372916674,1752804656346,-151.0,0.00018574,2]
[372916675,1752804656358,-151.0,0.0001863,2]
[372916676,1752804656371,-151.724833,0.0001863,2]
[372916677,1752804656384,-460.0,0.0001863,2]
[372916678,1752804656396,-180.19272262,0.0001863,2]
[372916679,1752804656408,-479.2269231,0.0001863,2]
[372916680,1752804656421,-482.95,0.0001863,2]
[372916681,1752804656434,-460.0,0.0001863,2]
[372916682,1752804656446,-1028.9,0.0001863,2]
[372916683,1752804656458,-460.0,0.0001863,2]
[372916684,1752804656471,-151.0,0.0001863,2]
[372916685,1752804656483,-460.0,0.0001863,2]
[372916686,1752804656495,-460.0,0.0001863,2]
[372916687,1752804656626,-914.13,0.0001863,2]
[372916688,1752804656644,-151.0,0.0001863,2]
[372916689,1752804656653,-460.0,0.0001863,2]
[372916691,1752804656663,-944.07,0.0001863,2]
[372916692,1752804656672,-460.0,0.0001863,2]
[372916693,1752804656682,-460.0,0.0001863,2]
[372916694,1752804656691,-460.0,0.0001863,2]
[372916695,1752804656701,-553.5,0.0001863,2]
[372916696,1752804656710,-460.0,0.0001863,2]
[372916697,1752804656719,-1218.2,0.0001863,2]
[372916698,1752804656728,-2162.0,0.0001863,2]
[372916699,1752804656738,-508.02,0.0001863,2]
[372916701,1752804656748,-460.0,0.0001863,2]
[372916702,1752804656758,-648.82,0.0001863,2]
[372916703,1752804656775,-473.4,0.0001863,2]
[372916704,1752804656791,-1683.07,0.0001863,2]
[372916705,1752804656802,-460.0,0.0001863,2]
[372916706,1752804656811,-460.0,0.0001863,2]
[372916707,1752804656821,-469.82,0.0001863,2]
[372916708,1752804656830,-460.0,0.0001863,2]
[372916709,1752804656840,-324.77,0.0001863,2]
[372916710,1752804656849,-460.0,0.0001863,2]
[372916711,1752804656858,-151.0,0.0001863,2]
[372916712,1752804656868,-460.0,0.0001863,2]
[372916713,1752804656880,-460.0,0.0001863,2]
[372916714,1752804656889,-202.523963,0.0001863,2]
[372916715,1752804656898,-460.0,0.0001863,2]
[372916716,1752804656908,-1400.22,0.0001863,2]
[372916717,1752804656918,-460.0,0.0001863,2]
[372916718,1752804656927,-460.0,0.0001863,2]
[372916719,1752804656937,-460.0,0.0001863,2]
[372916720,1752804656946,-460.0,0.0001863,2]
[372916721,1752804656955,-460.0,0.0001863,2]
[372916722,1752804656965,-1109.21,0.0001863,2]
[372916723,1752804656977,-1732.085838,0.0001863,2]
[372916724,1752804656986,-460.0,0.0001863,2]
[372916725,1752804656995,-1732.085838,0.0001863,2]
[372916726,1752804657004,-955.06,0.0001863,2]
[372916727,1752804657015,-417.74295782,0.0001863,2]
[372916728,1752804657024,-2135.19,0.0001863,2]
[372916729,1752804657034,-810.74,0.0001863,2]
[372916730,1752804657044,-460.0,0.0001863,2]
[372916731,1752804657054,-460.0,0.0001863,2]
[372916732,1752804657063,-156.37751188,0.0001863,2]
[372916733,1752804657073,-460.0,0.0001863,2]
[372916734,1752804657083,-524.14,0.0001863,2]
[372916735,1752804657092,-487.2,0.0001863,2]
[372916736,1752804657102,-460.0,0.0001863,2]
[372916737,1752804657112,-3372.73,0.0001863,2]
[372916738,1752804657122,-460.0,0.0001863,2]
[372916739,1752804657134,-548.0,0.00018661,2]
[372916740,1752804657144,-151.0,0.00018661,2]
[372916741,1752804657153,-246.5466711,0.00018661,2]
[372916742,1752804657163,-500.0,0.00018661,2]
[372916743,1752804657173,-360.0,0.00018669,2]
[372916744,1752804657182,-151.0,0.000187,2]
[372916745,1752804657192,-1000.0,0.000188,6]
[372916746,1752804657202,-5065.08398601,0.00018869,2]
[372916747,1752804657211,-370.92347411,0.0001888,2]
[372916748,1752804657221,-2547.79268702,0.000189,2]
[372916749,1752804657230,-460.0,0.00018904,2]
[372916750,1752804657239,-482.95,0.00018904,2]
[372916751,1752804657249,-460.0,0.00018904,2]
[372916752,1752804657259,-151.700656,0.00018904,2]
[372916753,1752804657268,-1028.9,0.00018904,2]
[372916754,1752804657278,-460.0,0.00018904,2]
[372916755,1752804657288,-270.363699,0.00018904,2]
[372916756,1752804657297,-156.579367,0.00018904,2]
[372916757,1752804657306,-156.579367,0.00018904,2]
[372916758,1752804657315,-460.0,0.00018904,2]